{"text_format":"5","workbook":"xlsx","n_sheets":1,"sheets":["ამბულატორია"],"not_rendered":{"defined_names":2},"read":"whole","date_system":"1900"}

{"sheet":"ამბულატორია","index":0,"n_rows":165,"n_cols":9,"rows_kept":165,"merged":[[0,7,0,8],[1,1,1,8],[2,0,4,0],[2,1,4,1],[2,2,4,2],[2,3,3,3],[2,4,2,5],[2,6,2,7],[2,8,3,8],[166,3,167,8]]}
[{"$nulls":7},"ფორმა №2"]
[null,"სოფ. რიყეს ამბულატორიის სამუშაოების ხარჯთაღიცხვა"]
["№","სამუშაოსა და მასალის დასახელება","განზ.","რაოდენ.","მასალა",null,"ხელფასი",null,"ჯამი"]
[{"$nulls":4},"ერთეული","სულ","ერთეული","სულ"]
[{"$nulls":3},"ა","ბ","გ=ა*ბ","დ","ე=ა*დ","ვ=გ+ე"]
[null,"სადემონტაჟო სამუშაოები"]
[null,"არსებული სახურავის დემონტაჟი","მ2",75,{"$nulls":3},{"$f":"D7*G7","v":0},{"$f":"F7+H7","v":0}]
[null,"იატაკიდან დაზიანებული ფილებისა და მოჭიმვის დემონტაჟი","მ2",66.4,{"$nulls":3},{"$f":"D8*G8","v":0},{"$f":"F8+H8","v":0}]
[null,"ფასადის კედლებიდან დაზიანებული ნალესის დემონტაჟი","მ2",18,{"$nulls":3},{"$f":"D9*G9","v":0},0]
[null,"შენობის პარაპეტის დემონტაჟი სისქით 20სმ","მ3",5,{"$nulls":3},0,0]
[null,"ბლოკის კედლის დემონტაჟი","მ3",3.5,{"$nulls":3},0,0]
[null,"სამშენებლო ნაგვისა და ნარჩენების გამოზიდვა,დატვირთვა ავტოთვითმცლელზე და ტრანსპორტირება ნაგავსაყრელზე","მ3",18,{"$nulls":3},0,0]
[null,"სამონტაჟო სამუშაოები"]
[null,"იატაკები"]
[null,"ნიშნულის გასწორება ქვა-ღორღით","მ2",54,{"$nulls":3},0,0]
[null,"ნამტვრევი ქვა-ღორღი ფრაქცია 10-20","მ3",11.5,null,{"$f":"D16*E16","v":0},null,null,0]
[null,"იატაკის მოჭიმვა ქვიშა-ცემენტის ხსნარით","მ2",120.4,{"$nulls":3},0,0]
[null,"ქვიშა-ცემენტის ხსნარი მ100","მ3",10.1,null,0,null,null,0]
[null,"იატაკზე ხელოვნური გრანიტის ფილების მოწყობა","მ2",120.4,{"$nulls":3},0,{"$f":"F19+H19","v":0}]
[null,"ხელოვნური გრანიტის ფილა არაპრიალა ზედაპირით, ფერი და ზომა შეთანხმდეს დამკვეთთან","მ2",128,null,0,null,null,0]
[null,"წებო-ცემენტი 25კგ","ცალი",41,null,0,null,null,0]
[null,"დეკორატიული ცემენტი","კგ",12,null,0,null,null,0]
[null,"სხვა მასალა","ლარი",1,null,0,null,null,0]
[null,"ხელოვნური გრანიტის პლინტუსის მოწყობა სიმაღლით 6სმ","მ",152,null,0,null,0,0]
[null,"ხელოვნური გრანიტის ფილა არაპრიალა ზედაპირით, ფერი და ზომა შეთანხმდეს დამკვეთთან","მ2",10,null,0,null,null,0]
[null,"წებო-ცემენტი 25კგ","ცალი",3,null,0,null,null,0]
[null,"დეკორატიული ცემენტი","კგ",1,null,0,null,null,0]
[null,"სხვა მასალა","ლარი",1,null,0,null,null,0]
[null,"ღიობები"]
[null,"მეტალოპლასტმასის ფანჯრების დამზადება და მონტაჟი 135*185-3ცალი ; 60*60-2ცალი; რაფებით, ერთი ფრთის გაღებით, მწერებისგან დამცავი ბადით","მ2",8.22,null,0,null,0,0]
[null,"კარის ღიობის ამოშენება სამშენებლო ბლოკით 20*20*40","მ2",5,{"$nulls":3},0,0]
[null,"ბლოკი 20*20*40","ცალი",64,null,0,null,null,0]
[null,"ქვიშა-ცემენტის ხსნარი მ150","მ3",0.3,null,0,null,null,0]
[null,"კარის ღიობის არსებული ნიშნულის მოყვანა 2.20მ ნიშნულზე თაბაშირ-მუყაოთი","ცალი",2,{"$nulls":3},0,0]
[null,"თაბაშირ-მუყაოს ფილა ნესტგამძლე ლითონის კარკასით","მ2",4.5,null,0,null,null,0]
[null,"მდფ-ის კარის მონტაჟი 220*0.9 თეთრი ფარის საკეტითა და პეტლებით","ცალი",7,null,0,null,0,0]
[null,"ფანჯრის ფაიების ამოლესვა ქვიშა-ცემენტის ხსნარით","მ",20,{"$nulls":3},0,0]
[null,"ქვიშა-ცემენტის ხსნარი მ150","მ3",0.2,null,0,null,null,0]
[null,"ჭერები"]
[null,"ამსტრონგის შეკიდული ჭერის მოწყობა","მ2",120.4,{"$nulls":3},0,0]
[null,"ამსტრონგის შეკიდული ჭერი ნესტგამძლე ფილებით, საკიდებითა და დამხმარე მასალებით","მ2",128,null,0,null,null,0]
[null,"კედლები და ტიხრები"]
[null,"ტიხრების მოწყობა თაბაშირ-მუყაოს ფილებით ხმის იაზოლაციით","მ2",33.5,{"$nulls":3},0,0]
[null,"თაბაშირ-მუყაოს ფილა ნესტგამძლე ლითონის კარკასით","მ2",{"$f":"D43*1.1","v":36.85},null,0,null,null,0]
[null,"ქვაბამბა სისქით 50მმ","მ2",33.5,null,0,null,null,0]
[null,"კედლებზე თაბაშირ-მუყაოს ფილების მოწყობა მიწებებით","მ2",140,{"$nulls":3},0,0]
[null,"ნესტგამძლე თაბაშირ-მუყაოს ფილა","მ2",150,null,0,null,null,0]
[null,"იაპი გიპსი 25კგ","ცალი",25,null,0,null,null,0]
[null,"კედლების დამუშავება ფითხით და შეღებვა წყალემულსიის საღებავით (ფერი შეთანხმდეს დამკვეთთან)","მ2",388,{"$nulls":3},0,0]
[null,"საფითხნი მასალა","კგ",310,null,0,null,null,0]
[null,"საღებავი წყალემულსიის","კგ",232,null,0,null,null,0]
[null,"სხვა მასალა","ლარი",1,null,0,null,null,0]
[null,"კედლებზე კაფელის მოწყობა","მ2",25,{"$nulls":3},0,0]
[null,"კაფელი (ფერი და ზომა შეთანხმდეს დამკვეთთან)","მ2",27,null,0,null,null,0]
[null,"წებო-ცემენტი 25კგ","ცალი",7,null,0,null,null,0]
[null,"დეკორატიული ცემენტი","კგ",3,null,0,null,null,0]
[null,"სხვა მასალა","ლარი",1,null,0,null,null,0]
[null,"ელექტროობა"]
[null,"ავტომატების სამონტაჟო ყუთის მონტაჟი  12 ავტომატზე","ცალი",1,null,0,null,0,0]
[null,"სადენის მონტაჟი სპილენძის ძარღვით ორმაგი იზოლაციით კვეთით 3*4","მ",70,null,0,null,0,0]
[null,"სადენის მონტაჟი სპილენძის ძარღვით ორმაგი იზოლაციით კვეთით 3*2.5","მ",220,null,0,null,0,0]
[null,"სადენის მონტაჟი სპილენძის ძარღვით ორმაგი იზოლაციით კვეთით 2*1.5","მ",120,null,0,null,0,0]
[null,"ჩამრთველის მონტაჟი ფარული გაყვანილობის ერთკლავიშიანი","ცალი",8,null,0,null,0,0]
[null,"ჩამრთველის მონტაჟი ფარული გაყვანილობის ორკლავიშიანი","ცალი",2,null,0,null,0,0]
[null,"როზეტის მონტაჟი ფარული გაყვანილობის დამიწებით","ცალი",28,null,0,null,0,0]
[null,"გამწოვი ვენტილატორის მონტაჟი 100მმ-იანი ყელით","ცალი",2,null,0,null,0,0]
[null,"ამსტრონგის ჭერის ლედსანათის მონტაჟი 60*60","ცალი",30,null,0,null,0,0]
[null,"ავტომატის მონტაჟი 2*63","ცალი",1,null,0,null,0,0]
[null,"ავტომატის მონტაჟი 1*32","ცალი",12,null,0,null,0,0]
[null,"სხვა მასალა","ლარი",1,null,0,null,0,0]
[null,"გათბობა"]
[null,"გათბობის ქვაბი 24კვტ რემკომპექტით","ცალი",1,null,{"$f":"D72*E72","v":0},null,{"$f":"D72*G72","v":0},{"$f":"F72+H72","v":0}]
[null,"მეტალოპლასტმასის მილების მონტაჟი 16მმ","მ",240,null,0,null,0,0]
[null,"კოლექტორის მონტაჟი","სექცია",19,null,0,null,0,0]
[null,"პანელური რადიატორი 1200*600","ცალი",2,null,0,null,0,0]
[null,"პანელური რადიატორი 1000*600","ცალი",7,null,0,null,0,0]
[null,"ვენტილების მონტაჟი მეტალოპლასტმასის მილებზე","ცალი",18,null,0,null,0,0]
[null,"სხვა მასალა","ლარი",1,null,0,null,null,0]
[null,"სანტექნიკა"]
[null,"100მმ-იანი საკანალიზაციო მილის მონტაჟი ფიტინგებით","მ",12,null,0,null,0,0]
[null,"50მმ-იანი საკანალიზაციო მილის მონტაჟი ფიტინგებით","მ",27,null,0,null,0,0]
[null,"აგურის კედლის გამოტეხვა 120*120","ცალი",5,{"$nulls":3},0,0]
[null,"მინაბოჭკოვანი მილის მონტაჟი 20მმ ფიტინგებით","მ",48,null,0,null,0,0]
[null,"არკოს ვენტილების მონტაჟი","ცალი",11,null,0,null,0,0]
[null,"ფაიფურის ფეხიანი ხელსაბნის მონტაჟი","ცალი",5,null,0,null,0,0]
[null,"წყლის შემრევის მონტაჟი","ცალი",5,null,0,null,0,0]
[null,"50მმ-იანი სიფონის მონტაჟი","ცალი",5,null,0,null,0,0]
[null,"უნიტაზის მონტაჟი კომპლექტი","ცალი",1,null,0,null,0,0]
[null,"ტრაპის მონტაჟი 50მმ","ცალი",2,null,0,null,0,0]
[null,"20მმ-იანი ვენტილის მონტაჟი","ცალი",2,null,0,null,0,0]
[null,"სხვა მასალა","ლარი",1,null,0,null,0,0]
[null,"გარე სამუშაოები"]
[null,"არსებული წყლის ჭის ამოტუმბვა, ამოსუფთავება და კედლების ჩარეცხვა კერხერით","ლარი",1,{"$nulls":3},0,0]
[null,"წყლის რეზერვუარის გამორეცხვა 5მ სიმაღლეზე","ცალი",1,{"$nulls":3},0,0]
[null,"მიწის გაჭრა ხელით მილის სამონტაჟოდ სიღრმით 30სმ","მ",69,{"$nulls":3},0,0]
[null,"საკანალისაციო ჭის ამოთხრა 1.3*2","ცალი",1,{"$nulls":3},0,0]
[null,"ჭაში ჩასაკიდი ელექტრონასოსის მოწყობა","ცალი",1,null,0,null,0,0]
[null,"32მმ-იანი მილის მონტაჟი ფიტინგებით","მ",65,null,0,null,null,0]
[null,"ვენტილების მონტაჟი 32მმ","ცალი",2,null,0,null,null,0]
[null,"32მმ-იანი მილების შეფუთვა ფოლგიენი მასალით","მ",10,null,0,null,null,0]
[null,"საკანალიზაციო მილის მოერთება ჭასთან","ცალი",1,{"$nulls":3},0,0]
[null,"საკანალიზაციო ჭის გადახურვის მოწყობა ლუქით 2*2","ცალი",1,null,0,null,0,0]
[null,"კიბის საფეხურების შეფუთვა ხელოვნურიგრანიტის ფილებით საფეხურის განი 40სმ, შუბლი 17სმ","მ",9.2,{"$nulls":3},0,0]
[null,"ხელოვნური გრანიტის ფილა არაპრიალა ზედაპირით, ფერი და ზომა შეთანხმდეს დამკვეთთან","მ2",7,null,0,null,null,0]
[null,"წებო-ცემენტი 25კგ ყინვაგამძლე","ცალი",3,null,0,null,null,0]
[null,"კიბის ბაქნის მოპირკეთება ბაზალტის ფილებით","მ2",9.2,{"$nulls":3},0,0]
[null,"ხელოვნური გრანიტის ფილა არაპრიალა ზედაპირით, ფერი და ზომა შეთანხმდეს დამკვეთთან","მ2",10,null,0,null,null,0]
[null,"წებო-ცემენტი 25კგ ყინვაგამძლე","ცალი",8,null,0,null,null,0]
[null,"შესასვლელის ჭერზე გუარდექსის ფილის მოწყობა","მ2",37.2,{"$nulls":3},0,0]
[null,"გუარდექსის ფილა ლითონის კარკასზე","მ2",39,null,0,null,null,0]
[null,"ჭერის  დამუშავება ფითხით და შეღებვა წყალემულსიის საღებავით","მ2",37.2,{"$nulls":3},0,0]
[null,"საფითხნი მასალა ფასადის","კგ",30,null,0,null,null,0]
[null,"საღებავი წყალემულსიის ფასადის","კგ",22,null,0,null,null,0]
[null,"სხვა მასალა","ლარი",1,null,0,null,null,0]
[null,"ფასადი"]
[null,"დაზიანებულ კედელზე არმატურის სეტკის მოწყობა 8მმ-იანი არმატურით ბიჯი 20სმ","მ2",25,{"$nulls":3},0,0]
[null,"არმატურის ბადე 8მმ-იანი ბიჯი 20სმ","მ2",27,null,0,null,null,0]
[null,"სხვა მასალა","ლარი",1,null,0,null,null,0]
[null,"კედლების ლესვა ქვიშა-ცემენტის ხსნარით","მ2",38,{"$nulls":3},0,0]
[null,"ქვიშა-ცემენტის ხსნარი მ150","მ3",1.5,null,0,null,null,0]
[null,"სხვა მასალა","ლარი",1,null,0,null,null,0]
[null,"კედელზე ნაშხეფის მოწყობა","მ2",55,null,0,null,0,0]
[null,"ქვიშა-ცემენტის ხსნარი მ150","მ3",0.25,null,0,null,null,0]
[null,"სხვა მასალა","ლარი",1,null,0,null,null,0]
[null,"ფასადის კედლების შეღებვა ფასადის წყალემულსიის საღებავით","მ",126,{"$nulls":3},0,0]
[null,"ფასადის გრუნტი","კგ",19,null,0,null,null,0]
[null,"საღებავი წყალემულსიის ფასადის","კგ",76,null,0,null,null,0]
[null,"სხვა მასალა","ლარი",1,null,0,null,null,0]
[null,"შ.შ.მ პანდუსი"]
[null,"მიწის დამუშავება ხელით პანდუსის საძირკვლის მოსაწყობად","მ3",1,{"$nulls":3},0,0]
[null,"შშმ პირთათვის რკინა-ბეტონის პანდუსის მოწყობა","მ3",2.9,{"$nulls":3},0,0]
[null,"ბეტონი ბ25","მ3",3,null,0,null,null,0]
[null,"არმატურა 12მმ","ტონა",0.27,null,0,null,null,0]
[null,"ყალიბის ფარი","მ2",9,null,0,null,null,0]
[null,"ხის მასალა","მ3",0.2,null,0,null,null,0]
[null,"ქვა-ღორღი ფრაქცია 10*25","მ3",4,null,0,null,null,0]
[null,"სხვა მასალა","ლარი",1,null,0,null,null,0]
[null,"შშმ პირთათვის პანდუსის მოპირკეთება ბაზალტის ფილებით","მ2",16,{"$nulls":3},{"$f":"D138*G138","v":0},{"$f":"F138+H138","v":0}]
[null,"ბაზალტის ქვა სისქით 20მმ","მ2",17.5,null,0,null,null,{"$f":"F139+H139","v":0}]
[null,"წებო-ცემენტი ყინვაგამძლე 25კგ","ცალი",7,null,0,null,null,0]
[null,"სხვა მასალა","ლარი",1,null,0,null,null,0]
[null,"ალუმინის მოაჯირის მოწყობა","მ",20,{"$nulls":3},0,0]
[null,"ალუმინის მოაჯირი შშმ პირთათვის","მ",20,null,0,null,null,0]
[null,"სხვა მასალა","ლარი",1,null,{"$f":"D144*E144","v":0},null,null,{"$f":"F144+H144","v":0}]
[null,"შენობამდე მისასვლელი ბილიკის მობეტონება","მ2",29,{"$nulls":3},{"$f":"D145*G145","v":0},0]
[null,"ბეტონი ბ20","მ3",3,null,0,null,null,0]
[null,"სახურავი"]
[null,"არსებული ხის კარკასის შეკეთება და ხის კოჭების დაგრძელება","მ2",38,{"$nulls":3},0,0]
[null,"ხის მასალა","მ3",2.1,null,0,null,null,0]
[null,"სხვა მასალა","ლარი",1,null,0,null,null,0]
[null,"გადახურვის მოწყობა მოთუთიებული გოფრირებული თუნუქით","მ2",96,{"$nulls":3},0,0]
[null,"გოფრირებული მოთუთიებული თუნუქი სისქით 0.5მმ","მ2",113,null,0,null,null,0]
[null,"სხვა მასალა","ლარი",1,null,0,null,null,0]
[null,"პარაპეტის ამოშენება სამშენებლო ბლოკით","მ2",6.5,{"$nulls":3},0,0]
[null,"სამშენებლო ბლოკი 20*20*40","ცალი",78,null,0,null,null,0]
[null,"ქვიშა-ცემენტის ხსნარი მ150","მ3",0.4,null,0,null,null,0]
[null,"ჯამი",{"$nulls":3},{"$f":"SUM(F7:F156)","v":0},null,{"$f":"SUM(H7:H156)","v":0},{"$f":"H157+F157","v":0}]
[null,"სატრანსპორტო ხარჯი",null,{"v":0.05,"d":"5%"},{"$nulls":4},{"$f":"F157*D158","v":0}]
[null,"ჯამი",{"$nulls":6},{"$f":"SUM(I157:I158)","v":0}]
[null,"ზედნადები ხარჯი",null,{"v":0.1,"d":"10%"},{"$nulls":4},{"$f":"I159*D160","v":0}]
[null,"ჯამი",{"$nulls":6},{"$f":"SUM(I159:I160)","v":0}]
[null,"გეგმიური დაგროვება",null,{"v":0.08,"d":"8%"},{"$nulls":4},{"$f":"I161*D162","v":0}]
[null,"ჯამი",{"$nulls":6},{"$f":"SUM(I161:I162)","v":0}]
[null,"გაუთვალისწინებელი ხარჯი",null,{"v":0.05,"d":"5%"},{"$nulls":4},{"$f":"I163*D164","v":0}]
[null,"სულ ხარჯთაღრიცხვით",{"$nulls":6},{"$f":"SUM(I163:I164)","v":0}]